fUST/lending_fUST_20251001
["ID","MTS","AMOUNT","RATE_DAILY","PERIOD"]
[388706468,1759325445807,-500.0,0.0002,2]
[388706469,1759325445816,-500.0,0.0002,2]
[388706470,1759325445825,-500.0,0.0002,2]
[388706471,1759325445835,-383.47882807,0.0002,2]
[388706472,1759325445844,-500.0,0.0002,2]
[388706473,1759325445854,-500.0,0.0002,2]
[388706474,1759325445863,-500.0,0.0002,2]
[388706475,1759325445872,-500.0,0.0002,2]
[388706476,1759325445881,-500.0,0.0002,2]
[388706477,1759325445891,-500.0,0.0002,2]
[388706478,1759325445901,-2460.04,0.0002,2]
[388706479,1759325445910,-500.0,0.0002,2]
[388706480,1759325445919,-500.0,0.0002,2]
[388706481,1759325445928,-500.0,0.0002,2]
[388706482,1759325445938,-531.02,0.0002,2]
[388706483,1759325445948,-2609.25,0.0002,2]
[388706484,1759325445957,-731.21,0.0002,2]
[388706486,1759325445967,-500.0,0.0002,2]
[388706487,1759325445976,-500.0,0.0002,2]
[388706488,1759325445987,-710.31,0.0002,2]
[388706489,1759325445997,-1002.43559663,0.00020021,2]
[388706490,1759325446010,-1000.0,0.00020021,2]
[388706491,1759325446024,-1000.0,0.00020021,2]
[388706492,1759325446033,-1000.0,0.00020021,2]
[388706493,1759325446043,-1000.0,0.00020021,2]
[388706494,1759325446053,-1000.0,0.00020021,2]
[388706495,1759325446062,-630.89369699,0.00020021,2]
[388706496,1759325446072,-1000.0,0.00020021,2]
[388706497,1759325446081,-500.0,0.00020273,2]
[388706498,1759325446090,-500.0,0.00020273,2]
[388706499,1759325446101,-420.0,0.00020273,2]
[388706500,1759325446111,-231.56,0.00020273,2]
[388706502,1759325446120,-500.0,0.00020273,2]
[388706504,1759325446129,-526.16802113,0.00020273,2]
[388706506,1759325446139,-500.0,0.00020273,2]
[388706508,1759325446149,-500.0,0.00020273,2]
[388706510,1759325446158,-537.06,0.00020273,2]
[388706512,1759325446168,-500.0,0.00020273,2]
[388706514,1759325446177,-289.74575535,0.00020273,2]
[388706516,1759325446186,-500.0,0.00020273,2]
[388706518,1759325446196,-500.0,0.00020273,2]
[388706520,1759325446206,-500.0,0.00020273,2]
[388706522,1759325446216,-2500.84,0.00020273,2]
[388706524,1759325446226,-500.0,0.00020273,2]
[388706525,1759325446235,-500.0,0.00020273,2]
[388706526,1759325446245,-500.0,0.00020273,2]
[388706527,1759325446254,-500.0,0.00020273,2]
[388706529,1759325446263,-500.0,0.00020273,2]
[388706531,1759325446272,-500.0,0.00020273,2]
[388706533,1759325446282,-500.0,0.00020273,2]
[388706535,1759325446291,-378.29,0.00020273,2]
[388706537,1759325446301,-476.67671965,0.00020273,2]
[388706539,1759325446310,-500.0,0.00020273,2]
[388706541,1759325446319,-500.0,0.00020273,2]
[388706543,1759325446330,-500.0,0.00020273,2]
[388706545,1759325446339,-561.55,0.00020273,2]
[388706546,1759325446348,-500.0,0.00020273,2]
[388706547,1759325446358,-500.0,0.00020273,2]
[388706548,1759325446369,-500.0,0.00020273,2]
[388706549,1759325446379,-500.0,0.00020273,2]
[388706550,1759325446388,-627.0,0.00020273,2]
[388706551,1759325446398,-935.67,0.00020273,2]
[388706552,1759325446408,-500.0,0.00020273,2]
[388706553,1759325446417,-500.0,0.00020273,2]
[388706554,1759325446426,-366.91,0.00020273,2]
[388706556,1759325446435,-500.0,0.00020273,2]
[388706557,1759325446445,-500.0,0.00020273,2]
[388706559,1759325446454,-500.0,0.00020273,2]
[388706561,1759325446464,-500.0,0.00020273,2]
[388706562,1759325446473,-173.32,0.00020273,2]
[388706563,1759325446482,-500.0,0.00020273,2]
[388706564,1759325446491,-2127.37,0.00020273,2]
[388706566,1759325446500,-500.0,0.00020273,2]
[388706567,1759325446510,-500.0,0.00020273,2]
[388706568,1759325446519,-500.0,0.00020273,2]
[388706569,1759325446528,-500.0,0.00020273,2]
[388706570,1759325446537,-500.0,0.00020273,2]
[388706571,1759325446546,-500.0,0.00020273,2]
[388706573,1759325446555,-500.0,0.00020273,2]
[388706574,1759325446564,-500.0,0.00020273,2]
[388706575,1759325446574,-500.0,0.00020273,2]
[388706577,1759325446583,-559.56968598,0.00020273,2]
[388706578,1759325446593,-500.0,0.00020273,2]
[388706579,1759325446602,-500.0,0.00020273,2]
[388706580,1759325446612,-500.0,0.00020273,2]
[388706581,1759325446621,-500.0,0.00020273,2]
[388706582,1759325446631,-500.0,0.00020273,2]
[388706583,1759325446640,-949.36,0.00020273,2]
[388706584,1759325446651,-526.86,0.00020273,2]
[388706585,1759325446660,-500.0,0.00020273,2]
[388706586,1759325446670,-500.0,0.00020273,2]
[388706587,1759325446679,-500.0,0.00020273,2]
[388706588,1759325446688,-500.0,0.00020273,2]
[388706589,1759325446697,-691.48,0.00020273,2]
[388706590,1759325446706,-500.0,0.00020273,2]
[388706591,1759325446716,-500.0,0.00020273,2]
[388706592,1759325446726,-500.0,0.00020273,2]
[388706593,1759325446735,-500.0,0.00020273,2]
[388706594,1759325446745,-500.0,0.00020273,2]
[388706595,1759325446755,-500.0,0.00020273,2]
[388706596,1759325446764,-500.0,0.00020273,2]
[388706597,1759325446774,-500.0,0.00020273,2]
[388706598,1759325446783,-500.0,0.00020273,2]
[388706599,1759325446798,-507.01266317,0.00020273,2]
[388706600,1759325446807,-500.0,0.00020273,2]
[388706601,1759325446817,-500.0,0.00020273,2]
[388706602,1759325446827,-500.0,0.00020273,2]
[388706603,1759325446836,-500.0,0.00020273,2]
[388706604,1759325446845,-545.87,0.00020273,2]
[388706605,1759325446855,-432.84,0.00020273,2]
[388706606,1759325446864,-993.0,0.00020273,2]
[388706607,1759325446874,-500.0,0.00020273,2]
[388706608,1759325446883,-167.72837558,0.00020273,2]
[388706609,1759325446892,-500.0,0.00020273,2]
[388706610,1759325446903,-500.0,0.00020273,2]
[388706611,1759325446912,-363.91170604,0.00020273,2]
[388706612,1759325446922,-500.0,0.00020273,2]
[388706613,1759325446931,-500.0,0.00020273,2]
[388706614,1759325446941,-500.0,0.00020273,2]
[388706615,1759325446950,-500.0,0.00020273,2]
[388706616,1759325446960,-500.0,0.00020273,2]
[388706617,1759325446970,-500.0,0.00020273,2]
[388706618,1759325446981,-500.0,0.00020273,2]
[388706619,1759325446991,-2460.04,0.00020273,2]
[388706620,1759325447000,-500.0,0.00020273,2]
[388706621,1759325447014,-500.0,0.00020273,2]
[388706622,1759325447024,-500.0,0.00020273,2]
[388706623,1759325447033,-531.02,0.00020273,2]
[388706624,1759325447042,-2609.25,0.00020273,2]
[388706625,1759325447053,-731.21,0.00020273,2]
[388706626,1759325447062,-609.57902156,0.00020273,2]
[388706627,1759325447072,-500.0,0.00020273,2]
[388706628,1759325447081,-710.31,0.00020273,2]
[388706629,1759325447091,-500.0,0.00020321,2]
[388706630,1759325447101,-500.0,0.00020321,2]
[388706631,1759325447110,-1000.0,0.00020521,2]
[388706632,1759325447120,-1000.0,0.00020521,2]
[388706633,1759325447129,-1000.0,0.00020521,2]
[388706634,1759325447138,-1151.48,0.00020538,3]
[388706635,1759325447147,-575.74,0.00020538,3]
[388706636,1759325447157,-500.0,0.00020547,2]
[388706637,1759325447167,-280.77347697,0.00020547,2]
[388706638,1759325447176,-500.0,0.00020547,2]
[388706639,1759325447186,-537.06,0.00020547,2]
[388706640,1759325447195,-166.94995297,0.00020547,2]
[388706641,1759325447204,-500.0,0.00020547,2]
[388706642,1759325447214,-500.0,0.00020547,2]
[388706643,1759325447223,-500.0,0.00020547,2]
[388706644,1759325447233,-2500.84,0.00020547,2]
[388706645,1759325447242,-414.02,0.00020547,2]
[388706646,1759325447251,-500.0,0.00020547,2]
[388706647,1759325447260,-351.62561006,0.00020547,2]
[388706648,1759325447269,-500.0,0.00020547,2]
[388706649,1759325447277,-608.58084514,0.00020547,2]
[388706650,1759325447286,-425.62684209,0.00020547,2]
[388706651,1759325447295,-500.0,0.00020547,2]
[388706652,1759325447304,-500.0,0.00020547,2]
[388706653,1759325447314,-500.0,0.00020547,2]
[388706654,1759325447324,-500.0,0.00020547,2]
[388706655,1759325447333,-561.55,0.00020547,2]
[388706656,1759325447342,-499.63,0.00020547,2]
[388706657,1759325447352,-500.0,0.00020547,2]
[388706658,1759325447361,-500.0,0.00020547,2]
[388706659,1759325447370,-500.0,0.00020547,2]
[388706660,1759325447378,-935.67,0.00020547,2]
[388706661,1759325447387,-290.16,0.00020547,2]
[388706662,1759325447397,-500.0,0.00020547,2]
[388706663,1759325447406,-500.0,0.00020547,2]
[388706664,1759325447416,-540.14032083,0.00020547,2]
[388706665,1759325447425,-500.0,0.00020547,2]
[388706666,1759325447434,-500.0,0.00020547,2]
[388706667,1759325447444,-500.0,0.00020547,2]
[388706668,1759325447453,-2127.37,0.00020547,2]
[388706669,1759325447462,-500.0,0.00020547,2]
[388706670,1759325447471,-500.0,0.00020547,2]
[388706671,1759325447480,-500.0,0.00020547,2]
[388706672,1759325447490,-500.0,0.00020547,2]
[388706673,1759325447499,-500.0,0.00020547,2]
[388706674,1759325447507,-500.0,0.00020547,2]
[388706675,1759325447516,-500.0,0.00020547,2]
[388706676,1759325447526,-500.0,0.00020547,2]
[388706677,1759325447534,-500.0,0.00020547,2]
[388706678,1759325447543,-500.0,0.00020547,2]
[388706679,1759325447553,-500.0,0.00020547,2]
[388706680,1759325447562,-500.0,0.00020547,2]
[388706681,1759325447571,-500.0,0.00020547,2]
[388706682,1759325447580,-207.42402711,0.00020547,2]
[388706683,1759325447590,-949.36,0.00020547,2]
[388706684,1759325447599,-526.86,0.00020547,2]
[388706685,1759325447608,-500.0,0.00020547,2]
[388706686,1759325447617,-500.0,0.00020547,2]
[388706687,1759325447626,-294.13,0.00020547,2]
[388706688,1759325447635,-500.0,0.00020547,2]
[388706689,1759325447645,-691.48,0.00020547,2]
[388706690,1759325447656,-500.0,0.00020547,2]
[388706691,1759325447665,-500.0,0.00020547,2]
[388706692,1759325447674,-500.0,0.00020547,2]
[388706693,1759325447684,-611.61,0.00020547,2]
[388706694,1759325447693,-500.0,0.00020547,2]
[388706695,1759325447703,-500.0,0.00020547,2]
[388706696,1759325447712,-200.0,0.00020547,10]
[388706697,1759325447721,-200.0,0.00020547,10]
[388706698,1759325447731,-500.0,0.00020547,2]
[388706699,1759325447740,-500.0,0.00020547,2]
[388706700,1759325447749,-500.0,0.00020547,2]
[388706701,1759325447758,-500.0,0.00020547,2]
[388706702,1759325447768,-500.0,0.00020547,2]
[388706703,1759325447777,-500.0,0.00020547,2]
[388706704,1759325447786,-500.0,0.00020547,2]
[388706705,1759325447796,-545.87,0.00020547,2]
[388706706,1759325447805,-993.0,0.00020547,2]
[388706707,1759325447815,-500.0,0.00020547,2]
[388706708,1759325447825,-500.0,0.00020547,2]
[388706709,1759325447834,-500.0,0.00020547,2]
[388706710,1759325447844,-627.95,0.00020547,2]
[388706711,1759325447853,-500.0,0.00020547,2]
[388706712,1759325447863,-500.0,0.00020547,2]
[388706713,1759325447872,-500.0,0.00020547,2]
[388706714,1759325447881,-500.0,0.00020547,2]
[388706715,1759325447891,-500.0,0.00020547,2]
[388706716,1759325447901,-500.0,0.00020547,2]
[388706717,1759325447910,-2460.04,0.00020547,2]
[388706718,1759325447919,-500.0,0.00020547,2]
[388706719,1759325447929,-500.0,0.00020547,2]
[388706720,1759325447938,-500.0,0.00020547,2]
[388706721,1759325447947,-531.02,0.00020547,2]
[388706722,1759325447957,-2609.25,0.00020547,2]
[388706723,1759325447966,-731.21,0.00020547,2]
[388706724,1759325447975,-500.0,0.00020547,2]
[388706725,1759325447985,-710.31,0.00020547,2]
[388706726,1759325447995,-500.0,0.00020568,2]
[388706727,1759325448004,-500.0,0.00020568,2]
[388706728,1759325448014,-500.0,0.00020568,2]
[388706729,1759325448027,-500.0,0.00020568,2]
[388706730,1759325448036,-1300.0,0.000208,3]
[388706731,1759325448046,-500.0,0.00020821,2]
[388706732,1759325448055,-1000.0,0.00020821,2]
[388706733,1759325448064,-500.0,0.00020821,2]
[388706734,1759325448073,-450.26,0.00020821,2]
[388706735,1759325448083,-537.06,0.00020821,2]
[388706736,1759325448094,-500.0,0.00020821,2]
[388706737,1759325448103,-345.46,0.00020821,2]
[388706738,1759325448112,-500.0,0.00020821,2]
[388706739,1759325448121,-2500.84,0.00020821,2]
[388706740,1759325448131,-500.0,0.00020821,2]
[388706741,1759325448140,-169.17526248,0.00020821,2]
[388706742,1759325448149,-500.0,0.00020821,2]
[388706743,1759325448158,-500.0,0.00020821,2]
[388706744,1759325448168,-500.0,0.00020821,2]
[388706745,1759325448177,-570.66391059,0.00020821,2]
[388706746,1759325448187,-561.55,0.00020821,2]
[388706747,1759325448196,-207.15,0.00020821,2]
[388706748,1759325448206,-500.0,0.00020821,2]
[388706749,1759325448215,-500.0,0.00020821,2]
[388706750,1759325448224,-935.67,0.00020821,2]
[388706751,1759325448233,-292.86,0.00020821,2]
[388706752,1759325448243,-500.0,0.00020821,2]
[388706753,1759325448355,-500.0,0.00020821,2]
[388706754,1759325448379,-500.0,0.00020821,2]
[388706755,1759325448389,-439.1,0.00020821,2]
[388706756,1759325448400,-2127.37,0.00020821,2]
[388706757,1759325448409,-500.0,0.00020821,2]
[388706758,1759325448419,-500.0,0.00020821,2]
[388706759,1759325448428,-500.0,0.00020821,2]
[388706760,1759325448437,-500.0,0.00020821,2]
[388706761,1759325448447,-500.0,0.00020821,2]
[388706762,1759325448457,-500.0,0.00020821,2]
[388706763,1759325448465,-500.0,0.00020821,2]
[388706764,1759325448475,-500.0,0.00020821,2]
[388706765,1759325448484,-473.51467345,0.00020821,2]
[388706766,1759325448493,-500.0,0.00020821,2]
[388706767,1759325448502,-500.0,0.00020821,2]
[388706768,1759325448512,-500.0,0.00020821,2]
[388706769,1759325448521,-500.0,0.00020821,2]
[388706770,1759325448530,-949.36,0.00020821,2]
[388706771,1759325448540,-526.86,0.00020821,2]
[388706772,1759325448549,-500.0,0.00020821,2]
[388706773,1759325448558,-500.0,0.00020821,2]
[388706774,1759325448567,-500.0,0.00020821,2]
[388706775,1759325448577,-691.48,0.00020821,2]
[388706776,1759325448586,-500.0,0.00020821,2]
[388706777,1759325448596,-500.0,0.00020821,2]
[388706778,1759325448605,-500.0,0.00020821,2]
[388706779,1759325448614,-500.0,0.00020821,2]
[388706780,1759325448625,-500.0,0.00020821,2]
[388706781,1759325448634,-500.0,0.00020821,2]
[388706782,1759325448643,-500.0,0.00020821,2]
[388706783,1759325448654,-500.0,0.00020821,2]
[388706784,1759325448663,-500.0,0.00020821,2]
[388706785,1759325448673,-500.0,0.00020821,2]
[388706786,1759325448683,-500.0,0.00020821,2]
[388706787,1759325448692,-500.0,0.00020821,2]
[388706788,1759325448701,-545.87,0.00020821,2]
[388706789,1759325448711,-993.0,0.00020821,2]
[388706790,1759325448720,-181.41220867,0.00020821,2]
[388706791,1759325448729,-500.0,0.00020821,2]
[388706792,1759325448739,-500.0,0.00020821,2]
[388706793,1759325448748,-500.0,0.00020821,2]
[388706794,1759325448758,-500.0,0.00020821,2]
[388706795,1759325448767,-500.0,0.00020821,2]
[388706796,1759325448777,-500.0,0.00020821,2]
[388706797,1759325448786,-190.87585191,0.00020821,2]
[388706798,1759325448912,-309.12414809,0.00020821,2]
[388706799,1759325448922,-310.83233191,0.00020821,2]
[388706800,1759325448942,-452.67,0.00019726,2]
[388706801,1759325448952,-2149.20766809,0.00020821,2]
[388706802,1759325448961,-406.75,0.00020821,2]
[388706803,1759325448970,-500.0,0.00020821,2]
[388706804,1759325448979,-500.0,0.00020821,2]
[388706805,1759325448988,-531.02,0.00020821,2]
[388706806,1759325448998,-1701.4732186,0.00020821,2]
[388706807,1759325449156,-375.50902156,0.00020821,2]
[388706808,1759325449373,-500.0,0.00019178,2]
[388706809,1759325449383,-333.33,0.00019452,2]
[388706810,1759325449392,-532.26775984,0.00020821,2]
[388706811,1759325449402,-512.91224016,0.00020821,2]
[388706812,1759325449413,-218.29775984,0.00020821,2]
[388706813,1759325449422,-500.0,0.00020821,2]
[388706814,1759325449432,-710.31,0.00020821,2]
[388706815,1759325449441,-160.0,0.00020839,2]
[388706816,1759325449451,-480.0,0.00020896,2]
[388706817,1759325449460,-1476.10025222,0.00020919,2]
[388706818,1759325449470,-167.54304195,0.00020995,2]
[388706819,1759325449479,-1680.0,0.00020996,2]
[388706820,1759325449488,-500.0,0.00021013,2]
[388706821,1759325449497,-500.0,0.00021013,2]
[388706822,1759325449506,-500.0,0.00021013,2]
[388706823,1759325449515,-280.32753425,0.00021013,2]
[388706824,1759325449523,-240.64680277,0.00021013,2]
[388706825,1759325449532,-500.0,0.00021013,2]
[388706826,1759325449541,-500.0,0.00021013,2]
[388706827,1759325449549,-500.0,0.00021013,2]
[388706828,1759325449559,-503.74439795,0.00021013,2]
[388706829,1759325449568,-500.0,0.00021013,2]
[388706830,1759325449577,-500.0,0.00021013,2]
[388706831,1759325449585,-500.0,0.00021013,2]
[388706832,1759325449595,-500.0,0.00021068,2]
[388706833,1759325449604,-500.0,0.00021068,2]
[388706834,1759325449613,-500.0,0.00021068,2]
[388706835,1759325449622,-500.0,0.00021095,2]
[388706836,1759325449631,-537.06,0.00021095,2]
[388706837,1759325449639,-500.0,0.00021095,2]
[388706838,1759325449649,-248.17748277,0.00021095,2]
[388706839,1759325449658,-2500.84,0.00021095,2]
[388706840,1759325449667,-500.0,0.00021095,2]
[388706841,1759325449676,-500.0,0.00021095,2]
[388706842,1759325449685,-500.0,0.00021095,2]
[388706843,1759325449694,-500.0,0.00021095,2]
[388706844,1759325449703,-561.55,0.00021095,2]
[388706845,1759325449711,-500.0,0.00021095,2]
[388706846,1759325449720,-500.0,0.00021095,2]
[388706847,1759325449729,-500.0,0.00021095,2]
[388706848,1759325449738,-2127.37,0.00021095,2]
[388706849,1759325449748,-500.0,0.00021095,2]
[388706850,1759325449757,-500.0,0.00021095,2]
[388706851,1759325449765,-156.95,0.00021095,2]
[388706852,1759325449774,-500.0,0.00021095,2]
[388706853,1759325449783,-500.0,0.00021095,2]
[388706854,1759325449792,-500.0,0.00021095,2]
[388706855,1759325449801,-500.0,0.00021095,2]
[388706856,1759325449809,-500.0,0.00021095,2]
[388706857,1759325449818,-500.0,0.00021095,2]
[388706858,1759325449828,-500.0,0.00021095,2]
[388706859,1759325449836,-500.0,0.00021095,2]
[388706860,1759325449846,-500.0,0.00021095,2]
[388706861,1759325449855,-949.36,0.00021095,2]
[388706862,1759325449864,-526.86,0.00021095,2]
[388706863,1759325449873,-500.0,0.00021095,2]
[388706864,1759325449882,-500.0,0.00021095,2]
[388706865,1759325449891,-500.0,0.00021095,2]
[388706866,1759325449901,-691.48,0.00021095,2]
[388706867,1759325449910,-500.0,0.00021095,2]
[388706868,1759325449919,-500.0,0.00021095,2]
[388706869,1759325449928,-500.0,0.00021095,2]
[388706870,1759325449937,-500.0,0.00021095,2]
[388706871,1759325449946,-500.0,0.00021095,2]
[388706872,1759325449956,-500.0,0.00021095,2]
[388706873,1759325449965,-500.0,0.00021095,2]
[388706874,1759325449974,-500.0,0.00021095,2]
[388706875,1759325449984,-500.0,0.00021095,2]
[388706876,1759325449993,-500.0,0.00021095,2]
[388706877,1759325450003,-500.0,0.00021095,2]
[388706878,1759325450018,-500.0,0.00021095,2]
[388706879,1759325450028,-545.87,0.00021095,2]
[388706880,1759325450038,-993.0,0.00021095,2]
[388706881,1759325450048,-500.0,0.00021095,2]
[388706882,1759325450059,-500.0,0.00021095,2]
[388706883,1759325450068,-500.0,0.00021095,2]
[388706884,1759325450078,-500.0,0.00021095,2]
[388706885,1759325450087,-500.0,0.00021095,2]
[388706886,1759325450099,-500.0,0.00021095,2]
[388706887,1759325450108,-500.0,0.00021095,2]
[388706888,1759325450118,-2460.04,0.00021095,2]
[388706889,1759325450127,-500.0,0.00021095,2]
[388706890,1759325450137,-500.0,0.00021095,2]
[388706891,1759325450146,-531.02,0.00021095,2]
[388706892,1759325450156,-2609.25,0.00021095,2]
[388706893,1759325450166,-731.21,0.00021095,2]
[388706894,1759325450176,-500.0,0.00021095,2]
[388706895,1759325450186,-710.31,0.00021095,2]
[388706896,1759325450195,-979.0,0.00021131,2]
[388706897,1759325450205,-410.0,0.00021131,2]
[388706898,1759325450214,-428.711,0.00021131,2]
[388706899,1759325450223,-2156.0,0.00021131,2]
[388706900,1759325450232,-630.0,0.00021131,2]
[388706901,1759325450241,-227.806,0.00021199,2]
[388706902,1759325450251,-250.0,0.00021199,2]
[388706903,1759325450260,-150.057,0.00021199,2]
[388706904,1759325450269,-2924.0,0.00021235,2]
[388706905,1759325450278,-500.0,0.00021264,2]
[388706906,1759325450287,-500.0,0.00021264,2]
[388706907,1759325450297,-264.30006476,0.00021264,2]
[388706908,1759325450306,-500.0,0.00021264,2]
[388706909,1759325450316,-500.0,0.00021264,2]
[388706910,1759325450325,-3000.0,0.000213,2]
[388706911,1759325450334,-3000.0,0.0002131,2]
[388706912,1759325450343,-3000.0,0.0002132,2]
[388706913,1759325450353,-3000.0,0.0002133,2]
[388706914,1759325450363,-3000.0,0.0002134,2]
[388706915,1759325450373,-3000.0,0.0002135,2]
[388706916,1759325450382,-3000.0,0.0002136,2]
[388706917,1759325450392,-500.0,0.00021369,2]
[388706918,1759325450401,-537.06,0.00021369,2]
[388706919,1759325450411,-500.0,0.00021369,2]
[388706920,1759325450420,-2500.84,0.00021369,2]
[388706921,1759325450430,-500.0,0.00021369,2]
[388706922,1759325450439,-500.0,0.00021369,2]
[388706923,1759325450449,-151.65,0.00021369,2]
[388706924,1759325450458,-381.52,0.00021369,2]
[388706925,1759325450467,-561.55,0.00021369,2]
[388706926,1759325450477,-500.0,0.00021369,2]
[388706927,1759325450487,-500.0,0.00021369,2]
[388706928,1759325450496,-500.0,0.00021369,2]
[388706929,1759325450506,-2127.37,0.00021369,2]
[388706930,1759325450515,-500.0,0.00021369,2]
[388706931,1759325450524,-529.28,0.00021369,2]
[388706932,1759325450534,-528.26569581,0.00021369,2]
[388706933,1759325450543,-500.0,0.00021369,2]
[388706934,1759325450552,-500.0,0.00021369,2]
[388706935,1759325450561,-500.0,0.00021369,2]
[388706936,1759325450571,-500.0,0.00021369,2]
[388706937,1759325450580,-500.0,0.00021369,2]
[388706938,1759325450589,-500.0,0.00021369,2]
[388706939,1759325450598,-500.0,0.00021369,2]
[388706940,1759325450607,-500.0,0.00021369,2]
[388706941,1759325450616,-949.36,0.00021369,2]
[388706942,1759325450626,-526.86,0.00021369,2]
[388706943,1759325450635,-500.0,0.00021369,2]
[388706944,1759325450645,-500.0,0.00021369,2]
[388706945,1759325450658,-500.0,0.00021369,2]
[388706946,1759325450668,-691.48,0.00021369,2]
[388706947,1759325450678,-500.0,0.00021369,2]
[388706948,1759325450687,-500.0,0.00021369,2]
[388706949,1759325450696,-500.0,0.00021369,2]
[388706950,1759325450705,-500.0,0.00021369,2]
[388706951,1759325450715,-500.0,0.00021369,2]
[388706952,1759325450725,-500.0,0.00021369,2]
[388706953,1759325450734,-500.0,0.00021369,2]
[388706954,1759325450744,-500.0,0.00021369,2]
[388706955,1759325450753,-500.0,0.00021369,2]
[388706956,1759325450763,-500.0,0.00021369,2]
[388706957,1759325450773,-500.0,0.00021369,2]
[388706958,1759325450783,-500.0,0.00021369,2]
[388706959,1759325450792,-545.87,0.00021369,2]
[388706960,1759325450802,-993.0,0.00021369,2]
[388706961,1759325450812,-500.0,0.00021369,2]
[388706962,1759325450822,-500.0,0.00021369,2]
[388706963,1759325450832,-500.0,0.00021369,2]
[388706964,1759325450841,-500.0,0.00021369,2]
[388706965,1759325450850,-500.0,0.00021369,2]
[388706966,1759325450859,-500.0,0.00021369,2]
[388706967,1759325450868,-500.0,0.00021369,2]
[388706968,1759325450879,-2460.04,0.00021369,2]
[388706969,1759325450888,-500.0,0.00021369,2]
[388706970,1759325450898,-500.0,0.00021369,2]
[388706971,1759325450908,-531.02,0.00021369,2]
[388706972,1759325450918,-2609.25,0.00021369,2]
[388706973,1759325450929,-731.21,0.00021369,2]
[388706974,1759325450938,-500.0,0.00021369,2]
[388706975,1759325450949,-710.31,0.00021369,2]
[388706976,1759325450959,-3000.0,0.0002137,2]
[388706977,1759325450968,-500.0,0.00021373,2]
[388706978,1759325450978,-500.0,0.00021373,2]
[388706979,1759325450988,-567.10621602,0.00021373,2]
[388706980,1759325450998,-3000.0,0.0002138,2]
[388706981,1759325451009,-260.0,0.00021387,2]
[388706982,1759325451020,-3000.0,0.0002139,2]
[388706983,1759325451032,-3000.0,0.000214,2]
[388706984,1759325451042,-3000.0,0.0002141,2]
[388706985,1759325451053,-3000.0,0.0002142,2]
[388706986,1759325451063,-3000.0,0.0002143,2]
[388706987,1759325451073,-3000.0,0.0002144,2]
[388706988,1759325451083,-3000.0,0.0002145,2]
[388706989,1759325451093,-3000.0,0.0002146,2]
[388706990,1759325451103,-3000.0,0.0002147,2]
[388706991,1759325451113,-3000.0,0.0002148,2]
[388706992,1759325451122,-3000.0,0.0002149,2]
[388706993,1759325451257,-3000.0,0.000215,2]
[388706994,1759325451268,-3000.0,0.0002151,2]
[388706995,1759325451278,-3000.0,0.0002152,2]